[Event "23rd European Women Club Cup 2018"]
[Site "Halkidiki"]
[Date "2018.10.17"]
[Round "6"]
[White "Khotenashvili, Bela"]
[Black "Semenova, Elena"]
[Result "1-0"]
[ECO "E06"]
[WhiteElo "2469"]
[BlackElo "2263"]
[Annotator "ChessBase"]
[PlyCount "131"]
[EventDate "2018.10.12"]
[EventType "team-tourn"]
[EventCountry "GRE"]
[SourceTitle "playchess.com"]
[Source "ChessBase"]
[SourceQuality "1"]
[WhiteTeam "Nona"]
[BlackTeam "SSHOR"]
[TimeControl "40/5400+30:1800+30"]

1. c4 {[%emt 0:00:00]} Nf6 {[%emt 0:01:22]} 2. d4 {[%emt 0:00:00]} e6 {[%emt 0:00:10]} 3. g3 {[%emt 0:00:00]} d5 {[%emt 0:00:48]} 4. Nf3 {[%emt 0:00:05]} Be7 {[%emt 0:04:15]} 5. Bg2 {[%emt 0:00:05]} O-O {[%emt 0:00:05]} 6. O-O {[%emt 0:00:08]} dxc4 {[%emt 0:00:16]} 7. Qa4 {[%emt 0:00:41]} a6 {[%emt 0:01:36]} 8. Qxc4 {[%emt 0:00:06]} b5 {[%emt 0:00:45]} 9. Qc2 {[%emt 0:00:06]} Bb7 {[%emt 0:00:10]} 10. Bd2 {[%emt 0:00:06]} Nc6 {[%emt 0:06:38]} 11. Be3 {[%emt 0:18:10]} Nb4 {[%emt 0:05:30]} 12. Qc1 {[%emt 0:00:27]} Nbd5 {[%emt 0:16:36]} 13. Nbd2 {[%emt 0:00:42]} Nxe3 {[%emt 0:03:28]} 14. fxe3 {[%emt 0:02:38]} Ne4 {[%emt 0:03:42]} 15. Nb3 {[%emt 0:03:26]} Bd5 {[%emt 0:10:54]} 16. Ne5 {[%emt 0:02:13]} Bd6 {[%emt 0:03:00]} 17. Nd3 {[%emt 0:04:09]} h5 {[%emt 0:04:58]} 18. Nf4 {[%emt 0:03:50]} h4 {[%emt 0:02:58]} 19. Nd2 {[%emt 0:06:53]} Nxd2 {[%emt 0:06:20]} 20. Qxd2 {[%emt 0:04:30]} hxg3 {[%emt 0:00:07]} 21. hxg3 {[%emt 0:03:34]} Bxg2 {[%emt 0:04:06]} 22. Kxg2 {[%emt 0:00:10]} e5 {[%emt 0:01:22]} 23. Nh3 {[%emt 0:11:08]} Qe7 {[%emt 0:00:39]} 24. d5 {[%emt 0:06:01]} e4 {[%emt 0:03:00]} 25. Qd4 {[%emt 0:19:32]} Qe5 {[%emt 0:02:17]} 26. Qxe5 {[%emt 0:05:23]} Bxe5 {[%emt 0:00:02]} 27. Rac1 {[%emt 0:00:16]} Rfd8 {[%emt 0:03:39]} 28. Rc5 {[%emt 0:05:28]} Bxb2 {[%emt 0:08:05]} 29. Rxc7 {[%emt 0:00:17]} Rxd5 {[%emt 0:01:29]} 30. Rfxf7 {[%emt 0:00:45]} Rf8 {[%emt 0:01:57]} 31. Rxf8+ {[%emt 0:00:20]} Kxf8 {[%emt 0:00:02]} 32. Nf4 {[%emt 0:00:21]} Rd6 {[%emt 0:00:50]} 33. Ra7 {[%emt 0:01:33]} Bc1 {[%emt 0:02:05]} 34. Kf2 {[%emt 0:00:59]} Rf6 {[%emt 0:00:19]} 35. Rc7 {[%emt 0:00:32]} Bd2 {[%emt 0:00:20]} 36. Rd7 {[%emt 0:00:11]} Bc1 {[%emt 0:00:58]} 37. Rc7 {[%emt 0:00:02]} Bb2 {[%emt 0:01:40]} 38. Kg2 {[%emt 0:01:20]} a5 {[%emt 0:00:37]} 39. Ra7 {[%emt 0:01:46]} a4 {[%emt 0:00:42]} 40. Rb7 {[%emt 0:00:00]} Rf5 {[%emt 0:00:00]} 41. g4 {[%emt 0:01:21]} Rf6 {[%emt 0:06:06]} 42. Rxb5 {[%emt 0:00:35]} a3 {[%emt 0:00:19]} 43. Rb8+ {[%emt 0:06:07]} Kf7 {[%emt 0:00:21]} 44. Rb7+ {[%emt 0:00:23]} Kf8 {[%emt 0:03:21]} 45. g5 {[%emt 0:07:20]} Rd6 {[%emt 0:02:24]} 46. Rb4 {[%emt 0:08:38]} Rd2 {[%emt 0:06:28]} 47. Rxe4 {[%emt 0:00:11]} Ba1 {[%emt 0:00:52]} 48. g6 {[%emt 0:03:02]} Rxa2 {[%emt 0:01:39]} 49. Nd5 {[%emt 0:01:02]} Rxe2+ {[%emt 0:05:09]} 50. Kf3 {[%emt 0:00:18]} Rc2 {[%emt 0:01:36]} 51. Ra4 {[%emt 0:00:15]} Rc8 {[%emt 0:04:16]} 52. Rh4 {[%emt 0:04:45]} Ke8 {[%emt 0:01:54]} 53. Rh8+ {[%emt 0:00:02]} Kd7 {[%emt 0:00:04]} 54. Nb6+ {[%emt 0:00:04]} Kc7 {[%emt 0:00:13]} 55. Rxc8+ {[%emt 0:00:39]} Kxb6 {[%emt 0:00:04]} 56. Ra8 {[%emt 0:00:14]} Bb2 {[%emt 0:00:10]} 57. Ke4 {[%emt 0:00:15]} Kc5 {[%emt 0:01:50]} 58. Kf5 {[%emt 0:00:41]} Kb4 {[%emt 0:00:58]} 59. e4 {[%emt 0:00:19]} Kb3 {[%emt 0:00:04]} 60. e5 {[%emt 0:00:11]} a2 {[%emt 0:00:04]} 61. Rxa2 {[%emt 0:00:09]} Kxa2 {[%emt 0:00:02]} 62. Ke6 {[%emt 0:00:06]} Kb3 {[%emt 0:00:28]} 63. Kd6 {[%emt 0:00:05]} Ba3+ {[%emt 0:02:04]} 64. Kd7 {[%emt 0:00:02]} Kc4 {[%emt 0:00:14]} 65. e6 {[%emt 0:00:05]} Kd5 {[%emt 0:00:20]} 66. e7 1-0

[Event "23rd European Women Club Cup 2018"]
[Site "Halkidiki"]
[Date "2018.10.17"]
[Round "6"]
[White "Socko, Monika"]
[Black "Girya, Olga"]
[Result "0-1"]
[ECO "D14"]
[WhiteElo "2451"]
[BlackElo "2479"]
[Annotator "ChessBase"]
[PlyCount "114"]
[EventDate "2018.10.12"]
[EventType "team-tourn"]
[EventCountry "GRE"]
[SourceTitle "playchess.com"]
[Source "ChessBase"]
[SourceQuality "1"]
[WhiteTeam "Monte-Carlo"]
[BlackTeam "Ugra"]
[TimeControl "40/5400+30:1800+30"]

1. d4 {[%emt 0:00:00]} d5 {[%emt 0:00:00]} 2. c4 {[%emt 0:00:00]} c6 {[%emt 0:00:00]} 3. cxd5 {[%emt 0:00:00]} cxd5 {[%emt 0:00:00]} 4. Bf4 {[%emt 0:00:00]} Nf6 {[%emt 0:00:00]} 5. Nc3 {[%emt 0:00:00]} Nc6 {[%emt 0:00:05]} 6. e3 {[%emt 0:00:01]} Bf5 {[%emt 0:00:07]} 7. Nf3 {[%emt 0:00:10]} e6 {[%emt 0:00:57]} 8. Qb3 {[%emt 0:00:09]} Bb4 {[%emt 0:02:40]} 9. Ne5 {[%emt 0:00:14]} Bxc3+ {[%emt 0:03:59]} 10. Qxc3 {[%emt 0:01:56]} Nxe5 {[%emt 0:02:03]} 11. Bxe5 {[%emt 0:02:25]} O-O {[%emt 0:00:17]} 12. Qb4 {[%emt 0:00:26]} Rc8 {[%emt 0:17:00]} 13. Be2 {[%emt 0:00:49]} Rc2 {[%emt 0:05:19]} 14. Bd1 {[%emt 0:00:54]} Rc4 {[%emt 0:04:30]} 15. Qa3 {[%emt 0:00:14]} Ne4 {[%emt 0:15:22]} 16. O-O {[%emt 0:18:18]} f6 {[%emt 0:03:32]} 17. Bf4 {[%emt 0:02:42]} g5 {[%emt 0:01:43]} 18. Bg3 {[%emt 0:00:46]} a6 {[%emt 0:02:46]} 19. Bb3 {[%emt 0:10:20]} Rc6 {[%emt 0:00:26]} 20. Qb4 {[%emt 0:06:32]} Nxg3 {[%emt 0:01:57]} 21. fxg3 {[%emt 0:12:42]} Be4 {[%emt 0:09:44]} 22. Rac1 {[%emt 0:01:07]} Qc7 {[%emt 0:00:41]} 23. Qd2 {[%emt 0:05:07]} Rc8 {[%emt 0:10:29]} 24. Rxc6 {[%emt 0:02:28]} Qxc6 {[%emt 0:00:01]} 25. Rxf6 {[%emt 0:15:06]} Qc1+ {[%emt 0:00:05]} 26. Qxc1 {[%emt 0:00:55]} Rxc1+ {[%emt 0:00:02]} 27. Rf1 {[%emt 0:00:32]} Rc6 {[%emt 0:00:21]} 28. g4 {[%emt 0:00:51]} Kg7 {[%emt 0:02:07]} 29. g3 {[%emt 0:00:41]} Bd3 {[%emt 0:04:10]} 30. Rd1 {[%emt 0:08:05]} Be2 {[%emt 0:01:40]} 31. Rd2 {[%emt 0:00:38]} Rc1+ {[%emt 0:00:15]} 32. Kf2 {[%emt 0:08:19]} Bxg4 {[%emt 0:00:05]} 33. Rc2 {[%emt 0:00:23]} Rb1 {[%emt 0:00:31]} 34. Rc7+ {[%emt 0:02:07]} Kf6 {[%emt 0:00:16]} 35. Rxh7 {[%emt 0:00:44]} Rxb2+ {[%emt 0:00:13]} 36. Kf1 {[%emt 0:01:04]} b5 {[%emt 0:04:11]} 37. h3 Bf5 {[%emt 0:02:07]} 38. Ra7 {[%emt 0:01:16]} Bxh3+ {[%emt 0:01:36]} 39. Ke1 {[%emt 0:00:01]} Bg4 {[%emt 0:03:58]} 40. Rxa6 {[%emt 0:00:00]} Kf5 {[%emt 0:00:00]} 41. Rb6 {[%emt 0:08:17]} Ke4 {[%emt 0:05:55]} 42. Rxb5 {[%emt 0:00:36]} Kxe3 {[%emt 0:00:31]} 43. Ba4 {[%emt 0:03:06]} Re2+ {[%emt 0:04:48]} 44. Kf1 {[%emt 0:00:04]} Bh3+ {[%emt 0:00:06]} 45. Kg1 {[%emt 0:00:06]} Rg2+ {[%emt 0:00:16]} 46. Kh1 {[%emt 0:00:03]} Rxa2 47. Rb4 {[%emt 0:04:15]} Bg2+ {[%emt 0:02:17]} 48. Kg1 {[%emt 0:00:04]} Be4 {[%emt 0:00:19]} 49. Rb3+ {[%emt 0:02:08]} Kxd4 {[%emt 0:00:06]} 50. Bd7 {[%emt 0:00:12]} e5 {[%emt 0:00:44]} 51. Bc6 {[%emt 0:00:48]} Rc2 {[%emt 0:00:45]} 52. Bb7 {[%emt 0:01:29]} Rc3 {[%emt 0:00:27]} 53. Rxc3 {[%emt 0:06:56]} Kxc3 {[%emt 0:01:10]} 54. Kh2 {[%emt 0:00:20]} Kd2 {[%emt 0:01:32]} 55. Kh3 {[%emt 0:01:15]} Bf3 {[%emt 0:00:08]} 56. g4 {[%emt 0:00:17]} Ke3 {[%emt 0:00:08]} 57. Kg3 {[%emt 0:00:32]} Be4 {[%emt 0:00:04]} 0-1

[Event "23rd European Women Club Cup 2018"]
[Site "Halkidiki"]
[Date "2018.10.17"]
[Round "6"]
[White "Mammadzada, Gunay"]
[Black "Shvayger, Yuliya"]
[Result "1/2-1/2"]
[ECO "B32"]
[WhiteElo "2438"]
[BlackElo "2375"]
[Annotator "NA"]
[PlyCount "73"]
[EventDate "2018.10.12"]
[EventType "team-tourn"]
[EventCountry "GRE"]
[SourceTitle "playchess.com"]
[Source "ChessBase"]
[SourceQuality "1"]
[WhiteTeam "Odlar Yurdu"]
[BlackTeam "Beer Sheva"]
[TimeControl "40/5400+30:1800+30"]

1. e4 {[%emt 0:00:00]} c5 {[%emt 0:00:00]} 2. Nf3 {[%emt 0:00:15]} Nc6 {[%emt 0:00:00]} 3. d4 {[%emt 0:00:05]} cxd4 {[%emt 0:00:00]} 4. Nxd4 {[%emt 0:00:06]} e5 {[%emt 0:00:00]} 5. Nb5 {[%emt 0:00:04]} d6 {[%emt 0:00:15]} 6. N1c3 {[%emt 0:00:19]} a6 {[%emt 0:00:29]} 7. Na3 {[%emt 0:00:02]} b5 {[%emt 0:00:09]} 8. Nd5 {[%emt 0:00:11]} Nge7 {[%emt 0:00:26]} 9. c4 {[%emt 0:00:12]} Nxd5 {[%emt 0:00:31]} 10. cxd5 {[%emt 0:00:06]} Nd4 {[%emt 0:01:03]} 11. Bd3 {[%emt 0:00:52]} g6 {[%emt 0:01:23]} 12. O-O {[%emt 0:01:24]} Bg7 {[%emt 0:00:15]} 13. Be3 {[%emt 0:01:00]} O-O {[%emt 0:00:30]} 14. Nc2 {[%emt 0:00:56]} Nxc2 {[%emt 0:06:24]} 15. Qxc2 {[%emt 0:00:40]} Bd7 {[%emt 0:00:08]} 16. Rac1 {[%emt 0:03:00]} Rc8 {[%emt 0:02:11]} 17. Qd2 {[%emt 0:00:47]} f5 {[%emt 0:02:22]} 18. Rxc8 {[%emt 0:23:13]} Bxc8 {[%emt 0:09:15]} 19. Qb4 {[%emt 0:07:48]} f4 {[%emt 0:01:40]} 20. Bd2 {[%emt 0:00:10]} Qb6 {[%emt 0:08:24]} 21. Rc1 {[%emt 0:07:40]} Bd7 {[%emt 0:00:37]} 22. a4 {[%emt 0:00:54]} Bf6 {[%emt 0:02:45]} 23. a5 {[%emt 0:18:07]} Qb8 {[%emt 0:00:39]} 24. Be2 {[%emt 0:02:23]} Be7 {[%emt 0:10:59]} 25. Bc3 {[%emt 0:05:44]} Rc8 {[%emt 0:02:41]} 26. Re1 {[%emt 0:01:13]} Re8 {[%emt 0:08:28]} 27. Qb3 {[%emt 0:03:40]} Bf6 {[%emt 0:01:19]} 28. Bb4 {[%emt 0:01:49]} Rc8 {[%emt 0:00:47]} 29. g3 {[%emt 0:01:28]} g5 {[%emt 0:03:15]} 30. Qd1 {[%emt 0:00:32]} Rf8 {[%emt 0:03:05]} 31. Bg4 {[%emt 0:02:30]} Qc8 {[%emt 0:00:01]} 32. Be2 {[%emt 0:06:23]} Be7 {[%emt 0:00:32]} 33. Qd2 {[%emt 0:00:43]} Qb8 {[%emt 0:05:53]} 34. Rc1 {[%emt 0:02:07]} Rc8 {[%emt 0:03:53]} 35. Kg2 {[%emt 0:03:03]} Rxc1 {[%emt 0:02:36]} 36. Qxc1 {[%emt 0:00:01]} Qc8 {[%emt 0:00:10]} 37. Qxc8+ {[%emt 0:02:38]} 1/2-1/2

[Event "23rd European Women Club Cup 2018"]
[Site "Halkidiki"]
[Date "2018.10.17"]
[Round "6"]
[White "Zimina, Olga"]
[Black "Gaponenko, Inna"]
[Result "0-1"]
[ECO "E92"]
[WhiteElo "2431"]
[BlackElo "2409"]
[Annotator "NA"]
[PlyCount "112"]
[EventDate "2018.10.12"]
[EventType "team-tourn"]
[EventCountry "GRE"]
[SourceTitle "playchess.com"]
[Source "ChessBase"]
[SourceQuality "1"]
[WhiteTeam "Pentole Agnelli"]
[BlackTeam "Kyiv"]
[TimeControl "40/5400+30:1800+30"]

1. c4 {[%emt 0:00:00]} Nf6 {[%emt 0:00:00]} 2. Nf3 {[%emt 0:00:00]} g6 {[%emt 0:00:00]} 3. Nc3 {[%emt 0:00:00]} Bg7 {[%emt 0:00:00]} 4. e4 {[%emt 0:00:08]} d6 {[%emt 0:00:00]} 5. d4 {[%emt 0:00:07]} O-O {[%emt 0:00:00]} 6. Be2 {[%emt 0:00:04]} e5 {[%emt 0:00:00]} 7. Be3 {[%emt 0:00:14]} c6 {[%emt 0:00:02]} 8. dxe5 {[%emt 0:06:25]} dxe5 {[%emt 0:00:11]} 9. O-O {[%emt 0:00:28]} Qe7 {[%emt 0:02:56]} 10. h3 {[%emt 0:01:56]} Na6 {[%emt 0:02:32]} 11. a3 {[%emt 0:00:17]} Nc5 {[%emt 0:18:10]} 12. Qc2 {[%emt 0:03:48]} Nh5 {[%emt 0:00:05]} 13. Rfd1 {[%emt 0:05:33]} Nf4 {[%emt 0:14:10]} 14. Bf1 {[%emt 0:03:39]} Re8 {[%emt 0:08:26]} 15. b4 {[%emt 0:01:50]} Nce6 {[%emt 0:02:38]} 16. g3 {[%emt 0:11:15]} Nd4 {[%emt 0:06:56]} 17. Nxd4 {[%emt 0:08:26]} exd4 {[%emt 0:00:06]} 18. Bxf4 {[%emt 0:03:12]} dxc3 {[%emt 0:00:04]} 19. e5 {[%emt 0:06:17]} Bf5 {[%emt 0:19:35]} 20. Qxc3 {[%emt 0:01:05]} Bxe5 {[%emt 0:00:05]} 21. Bxe5 {[%emt 0:00:13]} Qxe5 {[%emt 0:00:02]} 22. Qxe5 {[%emt 0:06:40]} Rxe5 {[%emt 0:00:02]} 23. g4 {[%emt 0:01:38]} Be6 {[%emt 0:01:49]} 24. f3 {[%emt 0:06:01]} a5 {[%emt 0:16:06]} 25. Kf2 {[%emt 0:01:58]} g5 {[%emt 0:00:01]} 26. Bd3 {[%emt 0:01:01]} Kg7 {[%emt 0:01:42]} 27. h4 {[%emt 0:01:26]} h5 {[%emt 0:01:52]} 28. hxg5 {[%emt 0:00:54]} Rxg5 {[%emt 0:00:12]} 29. gxh5 {[%emt 0:04:43]} Rxh5 {[%emt 0:00:14]} 30. Ke3 {[%emt 0:08:28]} Rh4 {[%emt 0:02:44]} 31. Rh1 {[%emt 0:02:53]} Rxh1 {[%emt 0:00:06]} 32. Rxh1 {[%emt 0:00:04]} axb4 {[%emt 0:00:12]} 33. axb4 {[%emt 0:00:06]} Ra3 {[%emt 0:00:12]} 34. Kd2 {[%emt 0:04:31]} Ra2+ {[%emt 0:00:46]} 35. Ke3 {[%emt 0:04:32]} Ra4 {[%emt 0:02:31]} 36. Rb1 {[%emt 0:01:36]} Ra3 {[%emt 0:00:04]} 37. Rg1+ {[%emt 0:00:25]} Kf6 {[%emt 0:00:11]} 38. Kd2 {[%emt 0:03:14]} Ke5 {[%emt 0:03:12]} 39. b5 {[%emt 0:02:28]} Kd4 {[%emt 0:00:23]} 40. Bc2 {[%emt 0:00:00]} Rxf3 {[%emt 0:00:00]} 41. bxc6 {[%emt 0:06:20]} bxc6 {[%emt 0:00:59]} 42. Rg8 {[%emt 0:08:21]} Rf2+ {[%emt 0:06:28]} 43. Kd1 {[%emt 0:04:59]} Bxc4 {[%emt 0:03:59]} 44. Rg4+ {[%emt 0:00:10]} Kc3 {[%emt 0:00:06]} 45. Rg3+ {[%emt 0:00:09]} Kb4 {[%emt 0:00:20]} 46. Be4 {[%emt 0:00:16]} c5 {[%emt 0:00:52]} 47. Bc6 {[%emt 0:00:49]} Be6 {[%emt 0:09:26]} 48. Ke1 {[%emt 0:00:22]} Rh2 {[%emt 0:00:05]} 49. Rf3 {[%emt 0:03:26]} c4 {[%emt 0:00:20]} 50. Rf4 {[%emt 0:00:36]} Kb3 {[%emt 0:00:32]} 51. Kd1 {[%emt 0:00:19]} c3 {[%emt 0:02:37]} 52. Kc1 {[%emt 0:00:24]} Rc2+ {[%emt 0:00:39]} 53. Kb1 {[%emt 0:02:21]} Rb2+ {[%emt 0:00:05]} 54. Kc1 {[%emt 0:00:10]} Rc2+ {[%emt 0:06:40]} 55. Kb1 {[%emt 0:00:09]} Ra2 {[%emt 0:00:07]} 56. Rf3 {[%emt 0:00:41]} Bf5+ {[%emt 0:01:04]} 0-1

[Event "23rd European Women Club Cup 2018"]
[Site "Halkidiki"]
[Date "2018.10.17"]
[Round "6"]
[White "Bodnaruk, Anastasia"]
[Black "Dzagnidze, Nana"]
[Result "1/2-1/2"]
[ECO "B43"]
[WhiteElo "2423"]
[BlackElo "2509"]
[Annotator "ChessBase"]
[PlyCount "107"]
[EventDate "2018.10.12"]
[EventType "team-tourn"]
[EventCountry "GRE"]
[SourceTitle "playchess.com"]
[Source "ChessBase"]
[SourceQuality "1"]
[WhiteTeam "SSHOR"]
[BlackTeam "Nona"]
[TimeControl "40/5400+30:1800+30"]

1. e4 {[%emt 0:00:00]} c5 {[%emt 0:00:00]} 2. Nf3 {[%emt 0:00:00]} e6 {[%emt 0:00:00]} 3. d4 {[%emt 0:00:00]} cxd4 {[%emt 0:00:00]} 4. Nxd4 {[%emt 0:00:00]} a6 {[%emt 0:00:00]} 5. Nc3 {[%emt 0:00:17]} Qc7 {[%emt 0:00:02]} 6. Be2 {[%emt 0:01:16]} Nf6 {[%emt 0:00:31]} 7. O-O {[%emt 0:01:19]} Be7 {[%emt 0:02:31]} 8. f4 {[%emt 0:01:42]} d6 {[%emt 0:00:05]} 9. Be3 {[%emt 0:00:59]} Nbd7 {[%emt 0:07:36]} 10. a4 {[%emt 0:01:35]} b6 {[%emt 0:04:47]} 11. Bf3 {[%emt 0:04:10]} Bb7 {[%emt 0:00:18]} 12. Qe2 {[%emt 0:04:00]} O-O {[%emt 0:10:44]} 13. g4 {[%emt 0:02:59]} Nc5 {[%emt 0:03:08]} 14. Qg2 {[%emt 0:02:20]} d5 {[%emt 0:11:07]} 15. exd5 {[%emt 0:08:03]} exd5 {[%emt 0:00:14]} 16. Nxd5 {[%emt 0:07:32]} Bxd5 {[%emt 0:01:36]} 17. Bxd5 {[%emt 0:00:05]} Nxd5 {[%emt 0:00:07]} 18. Qxd5 {[%emt 0:00:04]} Bf6 {[%emt 0:00:06]} 19. g5 {[%emt 0:13:04]} Bxd4 20. Bxd4 {[%emt 0:04:21]} Ne6 {[%emt 0:02:06]} 21. Qe5 {[%emt 0:03:09]} Qxc2 {[%emt 0:01:40]} 22. Bc3 {[%emt 0:01:36]} Rac8 {[%emt 0:01:56]} 23. a5 {[%emt 0:25:00]} Rc5 {[%emt 0:09:31]} 24. Qe3 {[%emt 0:00:06]} bxa5 {[%emt 0:00:08]} 25. Rxa5 {[%emt 0:08:06]} Rxa5 {[%emt 0:00:39]} 26. Bxa5 {[%emt 0:00:01]} Qf5 {[%emt 0:18:12]} 27. Bc3 {[%emt 0:02:05]} Rd8 {[%emt 0:00:06]} 28. Be5 {[%emt 0:04:22]} Rd3 {[%emt 0:06:14]} 29. Qe2 {[%emt 0:00:30]} Rh3 {[%emt 0:00:40]} 30. Qxa6 {[%emt 0:03:18]} h6 {[%emt 0:00:08]} 31. Qa8+ {[%emt 0:01:06]} Kh7 {[%emt 0:00:04]} 32. gxh6 {[%emt 0:00:45]} Rxh6 {[%emt 0:00:23]} 33. Qf3 {[%emt 0:01:46]} f6 {[%emt 0:02:12]} 34. Bc3 {[%emt 0:00:46]} Rh3 {[%emt 0:00:04]} 35. Qf2 {[%emt 0:00:33]} Nc5 {[%emt 0:00:45]} 36. Qg2 {[%emt 0:00:28]} Rh4 {[%emt 0:01:25]} 37. Be1 {[%emt 0:00:16]} Rg4 {[%emt 0:01:25]} 38. Bg3 {[%emt 0:00:00]} Ne4 {[%emt 0:00:09]} 39. Re1 {[%emt 0:00:44]} Qc5+ {[%emt 0:00:54]} 40. Kh1 {[%emt 0:00:00]} Nxg3+ {[%emt 0:00:00]} 41. hxg3 {[%emt 0:00:49]} Rg6 {[%emt 0:06:54]} 42. Qf3 {[%emt 0:05:47]} Qc2 {[%emt 0:01:28]} 43. Re2 {[%emt 0:01:43]} Qd1+ {[%emt 0:01:39]} 44. Kg2 {[%emt 0:00:06]} Rh6 {[%emt 0:00:46]} 45. Qe4+ {[%emt 0:03:19]} Kh8 {[%emt 0:00:25]} 46. Qe8+ {[%emt 0:05:08]} Kh7 {[%emt 0:02:54]} 47. Re1 {[%emt 0:05:07]} Qd2+ {[%emt 0:06:26]} 48. Qe2 {[%emt 0:00:45]} Qd7 {[%emt 0:00:07]} 49. g4 {[%emt 0:02:56]} f5 {[%emt 0:03:32]} 50. Qc2 {[%emt 0:05:00]} Rd6 {[%emt 0:04:49]} 51. Rh1+ {[%emt 0:01:53]} Kg6 {[%emt 0:00:15]} 52. Qxf5+ {[%emt 0:03:02]} Qxf5 {[%emt 0:00:11]} 53. gxf5+ {[%emt 0:00:01]} Kxf5 {[%emt 0:00:08]} 54. Rf1 {[%emt 0:00:59]} 1/2-1/2

[Event "23rd European Women Club Cup 2018"]
[Site "Halkidiki"]
[Date "2018.10.17"]
[Round "6"]
[White "Nechaeva, Marina"]
[Black "Cornette, Deimante"]
[Result "0-1"]
[ECO "E15"]
[WhiteElo "2409"]
[BlackElo "2462"]
[Annotator "ChessBase"]
[PlyCount "88"]
[EventDate "2018.10.12"]
[EventType "team-tourn"]
[EventCountry "GRE"]
[SourceTitle "playchess.com"]
[Source "ChessBase"]
[SourceQuality "1"]
[WhiteTeam "Ugra"]
[BlackTeam "Monte-Carlo"]
[TimeControl "40/5400+30:1800+30"]

1. d4 {[%emt 0:00:00]} Nf6 {[%emt 0:00:00]} 2. c4 {[%emt 0:00:00]} e6 {[%emt 0:00:00]} 3. Nf3 {[%emt 0:00:00]} b6 {[%emt 0:00:10]} 4. g3 {[%emt 0:00:10]} Bb4+ {[%emt 0:01:00]} 5. Bd2 {[%emt 0:00:06]} Bxd2+ {[%emt 0:00:15]} 6. Qxd2 {[%emt 0:00:04]} Ba6 {[%emt 0:00:20]} 7. b3 {[%emt 0:00:05]} O-O {[%emt 0:01:50]} 8. Bg2 {[%emt 0:00:03]} d5 {[%emt 0:00:29]} 9. O-O {[%emt 0:00:06]} c5 {[%emt 0:11:37]} 10. Nc3 {[%emt 0:00:08]} Nc6 {[%emt 0:00:57]} 11. Rfd1 {[%emt 0:00:08]} Rc8 {[%emt 0:39:07]} 12. cxd5 {[%emt 0:07:36]} exd5 {[%emt 0:01:06]} 13. dxc5 {[%emt 0:22:29]} bxc5 {[%emt 0:00:23]} 14. e3 {[%emt 0:16:15]} d4 {[%emt 0:09:46]} 15. Na4 {[%emt 0:01:59]} Ne4 {[%emt 0:01:59]} 16. Qb2 {[%emt 0:00:25]} Nb4 {[%emt 0:06:37]} 17. Ne1 {[%emt 0:02:33]} Re8 {[%emt 0:03:19]} 18. exd4 {[%emt 0:00:12]} Qf6 {[%emt 0:07:51]} 19. dxc5 {[%emt 0:08:08]} Qxb2 {[%emt 0:00:42]} 20. Nxb2 {[%emt 0:00:03]} Nxc5 {[%emt 0:05:46]} 21. Bf1 {[%emt 0:00:50]} Bxf1 {[%emt 0:01:23]} 22. Kxf1 {[%emt 0:00:03]} g6 {[%emt 0:01:03]} 23. Nc4 {[%emt 0:04:45]} Re6 {[%emt 0:00:28]} 24. Nf3 {[%emt 0:03:20]} Ra6 {[%emt 0:00:27]} 25. Nfe5 {[%emt 0:19:39]} Nc2 {[%emt 0:01:18]} 26. Rac1 {[%emt 0:00:45]} Rxa2 {[%emt 0:00:15]} 27. Nd6 {[%emt 0:08:42]} Rb8 {[%emt 0:00:43]} 28. Rd5 {[%emt 0:01:55]} Nxb3 {[%emt 0:00:32]} 29. Rcd1 {[%emt 0:00:03]} Nb4 {[%emt 0:00:45]} 30. Nd7 {[%emt 0:01:20]} Nxd5 {[%emt 0:01:35]} 31. Nxb8 {[%emt 0:00:04]} Nd2+ {[%emt 0:02:22]} 32. Kg2 {[%emt 0:00:03]} a5 {[%emt 0:00:57]} 33. Re1 {[%emt 0:01:37]} a4 {[%emt 0:00:06]} 34. Re5 {[%emt 0:00:03]} Nf6 {[%emt 0:00:46]} 35. Re2 {[%emt 0:01:10]} Rb2 {[%emt 0:00:26]} 36. Nc6 {[%emt 0:01:02]} a3 {[%emt 0:00:11]} 37. Re3 {[%emt 0:00:28]} a2 {[%emt 0:00:33]} 38. Ra3 {[%emt 0:00:03]} Nb3 {[%emt 0:00:41]} 39. Ra8+ {[%emt 0:00:04]} Kg7 {[%emt 0:00:04]} 40. Ra7 {[%emt 0:00:00]} a1=Q {[%emt 0:00:00]} 41. Rxf7+ {[%emt 0:00:09]} Kh6 {[%emt 0:03:04]} 42. Rxf6 {[%emt 0:00:35]} Nd2 {[%emt 0:05:06]} 43. h4 {[%emt 0:00:14]} Qf1+ {[%emt 0:00:21]} 44. Kh2 {[%emt 0:00:01]} Nf3+ {[%emt 0:00:34]} 0-1